bitfinex/quotes_BTCUSD_20251010
["timestamp","ask_amount","ask_price","bid_price","bid_amount"]
[1760130046366,0.09767,114940.0,114850.0,0.06974413]
[1760130046628,0.9454703,114920.0,114870.0,0.06974413]
[1760130046826,0.34,114900.0,114870.0,0.06974413]
[1760130047038,0.49012,114900.0,114890.0,0.06974413]
[1760130047264,0.34,114890.0,114850.0,0.06974413]
[1760130047479,0.34,114890.0,114850.0,0.15757145]
[1760130047731,0.06974413,114960.0,114870.0,0.24385202]
[1760130047931,0.49012,114960.0,114900.0,0.17406139]
[1760130048188,0.04663817,114950.0,114910.0,0.1740486]
[1760130048420,0.04663817,114950.0,114900.0,0.04450055]
[1760130048421,0.09767,114940.0,114900.0,0.04450055]
[1760130048663,0.49012,114930.0,114900.0,0.04450055]
[1760130049127,0.09767,114980.0,114900.0,0.11457145]
[1760130049360,0.08750055,114950.0,114900.0,0.00032677]
[1760130049590,0.08750055,114940.0,114900.0,0.00032677]
[1760130049811,0.08750055,114930.0,114900.0,0.00032677]
[1760130050049,0.08750055,114930.0,114900.0,0.17439076]
[1760130050304,0.08750055,114930.0,114920.0,0.17403411]
[1760130050538,0.49016,114970.0,114900.0,0.18309398]
[1760130050539,0.06974413,114960.0,114900.0,0.08782732]
[1760130050766,0.34,114940.0,114910.0,0.08750055]
[1760130050992,0.49016,114930.0,114910.0,0.08750055]
[1760130051207,0.58783,114930.0,114920.0,0.08750055]
[1760130051432,0.09767,114960.0,114920.0,0.08750055]
[1760130051669,0.33738972,114930.0,114920.0,0.08750055]
[1760130051901,0.58361,114950.0,114920.0,0.08750055]
[1760130052155,0.17403411,114920.0,114900.0,0.00032677]
[1760130052381,0.17403411,114920.0,114850.0,0.06974413]
[1760130052382,1.20684445,114910.0,114850.0,0.06974413]
[1760130052620,0.61417427,114890.0,114850.0,0.06979268]
[1760130052865,0.09345,114900.0,114850.0,0.06979268]
[1760130053103,0.61417655,114860.0,114830.0,0.06974413]
[1760130053348,0.6054703,114840.0,114810.0,0.06974413]
[1760130053583,0.09345,114830.0,114810.0,0.06974413]
[1760130053818,0.34,114810.0,114770.0,0.06974413]
[1760130054036,0.34,114810.0,114740.0,0.06974413]
[1760130054037,0.26766747,114800.0,114740.0,0.06974413]
[1760130054306,0.26766747,114800.0,114720.0,0.001]
[1760130054307,0.6054703,114780.0,114720.0,0.001]
[1760130054529,0.34,114750.0,114710.0,0.001]
[1760130054756,0.34,114730.0,114710.0,0.001]
[1760130054986,0.49024,114720.0,114680.0,0.06974413]
[1760130055226,0.09793184,114770.0,114700.0,0.06974413]
[1760130055505,0.00448184,114770.0,114700.0,0.06974413]
[1760130055723,0.09362609,114760.0,114720.0,0.06974413]
[1760130055977,0.09362609,114760.0,114720.0,0.02774413]
[1760130056205,0.09362609,114760.0,114730.0,0.6073403]
[1760130056426,0.09362609,114760.0,114750.0,0.9454703]
[1760130056427,0.09175609,114760.0,114750.0,0.9454703]
[1760130056652,0.04635609,114760.0,114750.0,0.34]
[1760130056869,0.04635609,114760.0,114750.0,0.51434058]
[1760130057093,0.04635609,114760.0,114750.0,1.11981088]
[1760130057319,0.04635609,114760.0,114750.0,0.51434058]
[1760130057544,0.04635609,114760.0,114750.0,1.11981088]
[1760130057762,0.04635609,114760.0,114750.0,0.94551895]
[1760130058001,0.04635609,114760.0,114750.0,1.11981088]
[1760130058441,0.00448184,114770.0,114760.0,0.51427675]
[1760130058663,0.00448184,114770.0,114760.0,1.28371675]
[1760130058897,0.00448184,114770.0,114760.0,0.9454703]
[1760130059126,1e-08,114770.0,114760.0,1.11974705]
[1760130059850,1e-08,114770.0,114760.0,0.9454703]
[1760130060070,1e-08,114770.0,114750.0,4.865e-05]
[1760130060294,1e-08,114770.0,114760.0,1.11974705]
[1760130060512,1e-08,114770.0,114760.0,1.23313183]
[1760130060755,0.06974413,114890.0,114760.0,0.72766152]
[1760130060975,0.06974413,114890.0,114860.0,0.1828237]
[1760130061205,0.06974413,114890.0,114850.0,1.00458986]
[1760130061424,0.06974413,114920.0,114860.0,0.78829875]
[1760130061649,0.06974413,114940.0,114890.0,0.6054703]
[1760130061898,0.001,114950.0,114900.0,0.34]
[1760130062119,0.00150408,114950.0,114900.0,0.6054703]
[1760130062334,0.00150408,114950.0,114900.0,0.77953431]
[1760130062558,0.00150408,114950.0,114890.0,1.0959503]
[1760130062786,0.00150408,114950.0,114920.0,0.18273484]
[1760130063032,0.00150408,114950.0,114860.0,0.68942527]
[1760130063314,0.00150408,114950.0,114870.0,0.49048]
[1760130063530,0.9943303,114940.0,114860.0,0.01421084]
[1760130063744,1.4848103,114940.0,114850.0,0.06974413]
[1760130064006,0.09873,114930.0,114830.0,0.06974413]
[1760130064226,0.09873,114930.0,114850.0,0.06974413]
[1760130064227,0.44743094,114930.0,114850.0,0.06974413]
[1760130064462,0.44743094,114930.0,114830.0,0.06974413]
[1760130064463,0.6054703,114880.0,114830.0,0.08348722]
[1760130064679,0.6054703,114870.0,114830.0,0.08348722]
[1760130064905,0.6054703,114870.0,114830.0,0.01374309]
[1760130065124,0.6054703,114850.0,114830.0,0.01374309]
[1760130065345,0.6543303,114890.0,114840.0,0.06974413]
[1760130065568,0.6054703,114860.0,114810.0,0.06974413]
[1760130065810,0.49044,114870.0,114830.0,0.08393249]
[1760130066039,1.09641407,114890.0,114850.0,0.06974413]
[1760130066270,0.00050377,114890.0,114850.0,0.06974413]
[1760130066935,0.00050377,114890.0,114830.0,0.08383399]
[1760130067204,0.00050377,114890.0,114810.0,0.51816525]
[1760130067205,0.60597407,114890.0,114810.0,0.51816525]
[1760130067429,0.43873,114880.0,114790.0,0.06974413]
[1760130067651,0.34870625,114860.0,114750.0,0.78844503]
[1760130067867,0.6054703,114870.0,114800.0,0.24395955]
[1760130068092,0.6054703,114870.0,114800.0,0.24395895]
[1760130068314,0.60597407,114890.0,114820.0,0.25263697]
[1760130068538,0.00050377,114890.0,114830.0,0.07845265]
[1760130068757,0.00050377,114890.0,114840.0,0.18286251]
[1760130068982,0.00050377,114890.0,114840.0,0.17415441]
[1760130069424,0.00050377,114890.0,114830.0,0.06974413]
[1760130069679,0.00050377,114890.0,114840.0,0.78832025]
[1760130069898,0.00050377,114890.0,114840.0,0.18284995]
[1760130070118,0.00050377,114890.0,114830.0,0.77964066]
[1760130070345,0.00050377,114890.0,114860.0,0.18282876]
[1760130070561,0.00050377,114890.0,114880.0,0.1740947]
[1760130070787,0.00050377,114890.0,114870.0,0.77957119]
[1760130071046,0.00050377,114890.0,114880.0,0.1740947]
[1760130071267,0.00050377,114890.0,114860.0,0.34]
[1760130071268,0.08800432,114890.0,114860.0,0.34]
[1760130071501,0.08750055,114880.0,114870.0,0.51409872]
[1760130071727,0.08939313,114890.0,114860.0,1.14221363]
[1760130071949,0.08750055,114880.0,114860.0,0.01393956]
[1760130072166,0.08750055,114870.0,114860.0,0.00050377]
[1760130073043,0.08750055,114870.0,114860.0,0.01468235]
[1760130073262,0.08750055,114870.0,114860.0,0.00050377]
[1760130074367,0.34,114890.0,114860.0,0.0144648]
[1760130074848,0.004,114870.0,114860.0,0.0144648]
[1760130075063,0.34,114910.0,114860.0,0.10196535]
[1760130075298,0.001,114930.0,114870.0,0.08750055]
[1760130075517,0.08750055,114920.0,114870.0,0.0832558]
[1760130075728,0.001,114930.0,114880.0,0.18279164]
[1760130075953,0.08750055,114920.0,114890.0,0.18277739]
[1760130076164,0.08750055,114920.0,114910.0,0.17404925]
[1760130076379,0.08750055,114920.0,114910.0,0.77951955]
[1760130077033,0.08750055,114920.0,114910.0,0.17404925]
[1760130077247,0.08750055,114920.0,114910.0,1.26991955]
[1760130077481,0.08750055,114920.0,114910.0,1.6099682]
[1760130077698,0.01100531,114920.0,114910.0,1.6099682]
[1760130077921,2.42602761,115000.0,114940.0,0.51400382]
[1760130078132,2.23228091,115000.0,114990.0,0.6054703]
[1760130078345,2.23228091,115000.0,114980.0,0.77941094]
[1760130078558,2.23228091,115000.0,114960.0,0.4904]
[1760130078814,2.23228091,115000.0,114980.0,0.61817308]
[1760130079024,2.23228091,115000.0,114960.0,0.6054703]
[1760130079483,2.23228091,115000.0,114960.0,0.60551895]
[1760130079909,2.02207856,115000.0,114960.0,0.62822216]
[1760130080156,2.02207856,115000.0,114960.0,0.61952349]
[1760130080360,2.02207856,115000.0,114960.0,0.62822216]
[1760130080573,2.02207856,115000.0,114960.0,0.61952349]
[1760130081007,2.02207856,115000.0,114960.0,0.02275186]
[1760130081227,2.02207856,115000.0,114960.0,0.01405319]
[1760130081651,2.02207856,115000.0,114960.0,0.00550034]
[1760130081876,2.02207856,115000.0,114950.0,0.77945601]
[1760130082092,2.02207856,115000.0,114950.0,0.25248001]
[1760130082311,2.02207856,115000.0,114960.0,0.6054703]
[1760130082522,0.34,114990.0,114950.0,0.01437699]
[1760130082739,0.4902,114980.0,114950.0,0.01437699]
[1760130082956,0.34,114990.0,114950.0,0.01437699]
[1760130083172,0.34,114970.0,114950.0,0.01437699]
[1760130083607,0.49016,114960.0,114950.0,4.865e-05]
[1760130084245,0.83016,114960.0,114950.0,4.865e-05]
[1760130084460,0.92889,114960.0,114950.0,4.865e-05]
[1760130084673,0.34,114960.0,114950.0,4.865e-05]
[1760130084886,0.34,114960.0,114950.0,0.0875492]
[1760130085130,2.02207856,115000.0,114950.0,0.0875492]
[1760130085347,0.49016,114990.0,114960.0,0.08750055]
[1760130085572,0.58889,114990.0,114960.0,0.08750055]
[1760130085781,0.49016,114980.0,114960.0,0.08750055]
[1760130086007,2.02207856,115000.0,114960.0,0.08750055]
[1760130086216,0.49016,114990.0,114960.0,0.08750055]
[1760130086715,2.02207856,115000.0,114970.0,0.08750055]
[1760130086939,0.49016,114980.0,114970.0,0.04450055]
[1760130087143,0.83016,114980.0,114970.0,0.04450055]
[1760130087363,2.02207856,115000.0,114970.0,0.04450055]
[1760130087584,2.02207856,115000.0,114990.0,0.0510854]
[1760130088016,2.46080856,115000.0,114990.0,0.0510854]
[1760130088232,0.51393931,114990.0,114930.0,0.00905957]
[1760130088439,0.34,114970.0,114930.0,0.00905957]
[1760130088648,0.49012,114960.0,114940.0,0.06974413]
[1760130088867,0.34,114940.0,114930.0,4.865e-05]
[1760130089091,0.13987,114990.0,114930.0,4.865e-05]
[1760130089301,2.02207856,115000.0,114940.0,0.67521443]
[1760130089516,2.02207856,115000.0,114940.0,0.72630443]
[1760130089723,2.02207856,115000.0,114960.0,0.06974413]
[1760130089934,2.02207856,115000.0,114970.0,0.05109]
[1760130090144,2.02207856,115000.0,114980.0,0.13859055]
[1760130090351,2.02207856,115000.0,114980.0,0.08750055]
[1760130090765,2.02207856,115000.0,114990.0,0.05109]
[1760130090975,2.02207856,115000.0,114990.0,0.13859055]
[1760130091188,2.02207856,115000.0,114990.0,0.1386392]
[1760130091389,2.02207856,115000.0,114990.0,0.7441095]
[1760130091600,2.02207856,115000.0,114990.0,0.1386392]
[1760130091844,2.01946987,115000.0,114990.0,0.1386392]
[1760130092032,2.01946987,115000.0,114990.0,0.7441095]
[1760130092233,2.01946987,115000.0,114990.0,0.1386392]
[1760130092438,2.01946987,115000.0,114990.0,0.05113865]
[1760130092650,2.35946987,115000.0,114990.0,4.865e-05]
[1760130092858,2.35946987,115000.0,114990.0,0.12088278]
[1760130092859,1.96837987,115000.0,114990.0,0.12088278]
[1760130093076,1.96837987,115000.0,114990.0,0.98778179]
[1760130093490,1.96837987,115000.0,114990.0,0.22506681]
[1760130093697,1.96837987,115000.0,114990.0,0.83053711]
[1760130093903,1.96837987,115000.0,114990.0,0.22506681]
[1760130094109,1.96837987,115000.0,114990.0,0.83053711]
[1760130094358,2.05588042,115000.0,114990.0,0.83053711]
[1760130094559,2.05588042,115000.0,114990.0,0.78753711]
[1760130095039,2.05588042,115000.0,114990.0,1.27541711]
[1760130095280,2.05588042,115000.0,114990.0,0.18206681]
[1760130095498,2.05588042,115000.0,114990.0,0.78753711]
[1760130095725,2.05588042,115000.0,114990.0,0.61360895]
[1760130095942,2.05588042,115000.0,114990.0,0.78753711]
[1760130096408,2.05588042,115000.0,114990.0,0.00813865]
[1760130096649,2.05588042,115000.0,114990.0,0.61360895]
[1760130096890,2.05588042,115000.0,114960.0,0.00869867]
[1760130097115,0.08750055,114980.0,114970.0,0.6054703]
[1760130097341,0.08750055,114980.0,114970.0,0.17395842]
[1760130097561,0.08750055,114980.0,114970.0,0.77942872]
[1760130097782,0.08750055,114980.0,114970.0,0.6054703]
[1760130098022,1.96837987,115000.0,114970.0,0.6054703]
[1760130098287,2.05588042,115000.0,114990.0,0.6044703]
[1760130098530,2.05588042,115000.0,114960.0,0.48356864]
[1760130098785,0.08750055,114990.0,114980.0,0.6054703]
[1760130099272,0.48252,114990.0,114960.0,4.864e-05]
[1760130099505,0.34,114980.0,114970.0,0.08750055]
[1760130099736,0.822,114980.0,114960.0,4.864e-05]
[1760130100199,0.34,114980.0,114960.0,4.864e-05]
[1760130100435,0.48096,114970.0,114960.0,4.864e-05]
[1760130100691,0.26145897,114970.0,114960.0,4.864e-05]
[1760130100918,0.34,114970.0,114960.0,0.08754919]
[1760130101137,1.96837987,115000.0,114960.0,0.69199895]
[1760130101356,2.44797987,115000.0,114970.0,0.08750055]
[1760130101578,0.4792,114990.0,114960.0,0.6044984]
[1760130101808,0.08750055,114990.0,114960.0,0.6044984]
[1760130102041,0.34,114990.0,114980.0,0.60444976]
[1760130102254,0.42750055,114990.0,114950.0,0.06974413]
[1760130102467,0.56666055,114980.0,114950.0,0.06979275]
[1760130102675,0.34,114970.0,114950.0,0.08754917]
[1760130102886,0.001,114980.0,114950.0,0.70074836]
[1760130103100,0.001,114980.0,114970.0,0.60444976]
[1760130103305,0.001,114980.0,114970.0,0.08750055]
[1760130103524,0.47656,114980.0,114970.0,0.08750055]
[1760130103730,1.96837987,115000.0,114970.0,0.08750055]
[1760130103731,0.341,114990.0,114970.0,0.08750055]
[1760130103948,1.96837987,115000.0,114980.0,0.08750055]
[1760130104389,1.96837987,115000.0,114990.0,0.08750055]
[1760130105233,1.95482179,115000.0,114990.0,0.08750055]
[1760130105711,1.95482179,115000.0,114990.0,0.08754917]
[1760130106179,1.95482179,115000.0,114990.0,0.26047733]
[1760130106387,1.95482179,115000.0,114990.0,0.33022146]
[1760130106605,1.95482179,115000.0,114990.0,0.77436098]
[1760130106823,1.95482179,115000.0,114990.0,0.08654917]
[1760130106824,1.95982179,115000.0,114990.0,0.08654917]
[1760130107038,1.96082179,115000.0,114990.0,0.08654917]
[1760130107264,1.95482179,115000.0,114990.0,0.08654917]
[1760130107473,1.95482179,115000.0,114990.0,0.26047733]
[1760130107911,1.95482179,115000.0,114990.0,0.68786043]
[1760130108351,2.04232234,115000.0,114990.0,0.68786043]
[1760130108801,1.95882179,115000.0,114990.0,0.27397677]
[1760130109019,1.55993475,115000.0,114990.0,0.87536097]
[1760130109490,1.55593475,115000.0,114990.0,1.34452097]
[1760130109702,1.55793475,115000.0,114990.0,1.24552098]
[1760130109932,1.55793475,115000.0,114990.0,0.13197678]
[1760130110153,1.55593475,115000.0,114990.0,0.68663733]
[1760130110366,1.55593475,115000.0,114990.0,1.20152098]
[1760130110581,1.55793475,115000.0,114990.0,0.59913678]
[1760130110806,1.55793475,115000.0,114990.0,0.68663733]
[1760130111017,1.55793475,115000.0,114990.0,1.20052098]
[1760130111237,2.05793475,115000.0,114990.0,0.85234325]
[1760130111450,2.05793475,115000.0,114990.0,0.84101829]
[1760130111666,2.05593475,115000.0,114990.0,0.15320648]
[1760130111883,2.05593475,115000.0,114990.0,0.15420648]
[1760130112138,2.05793475,115000.0,114990.0,0.08850055]
[1760130112354,2.39793475,115000.0,114990.0,0.08850055]
[1760130112573,2.39793475,115000.0,114990.0,0.08750055]
[1760130112790,2.39593475,115000.0,114990.0,0.08750055]
[1760130113008,2.3878354,115000.0,114990.0,0.08850055]
[1760130113229,2.03789133,115000.0,114990.0,1.33951235]
[1760130113455,2.03789133,115000.0,114990.0,1.70451234]
[1760130113456,0.90244903,115000.0,114990.0,1.70451234]
[1760130113688,0.82881144,115000.0,114990.0,1.80451233]
[1760130113908,0.11140501,115000.0,114990.0,1.80451233]
[1760130114128,0.01123425,115030.0,115020.0,0.27388279]
[1760130114346,0.07014413,115120.0,115030.0,0.27386767]
[1760130114555,0.08750055,115110.0,115070.0,0.68769089]
[1760130114794,0.08750055,115110.0,115080.0,0.63723095]
[1760130115011,0.08750055,115110.0,115080.0,0.45944]
[1760130115228,0.08750055,115110.0,115050.0,0.73070288]
[1760130115442,0.08750055,115110.0,115050.0,0.54818055]
[1760130115653,0.42800569,115110.0,115050.0,0.54818055]
[1760130115865,0.43200569,115110.0,115050.0,0.54818055]
[1760130116115,0.34,115090.0,115050.0,0.54818055]
[1760130116390,0.08750055,115080.0,115050.0,0.53242413]
[1760130116609,0.08750055,115080.0,115050.0,0.54164577]
[1760130116828,0.08750055,115070.0,115050.0,0.47190164]
[1760130117036,0.08750055,115060.0,115050.0,0.00922164]
[1760130117478,0.08750055,115060.0,115010.0,0.52982413]
[1760130117712,0.34,115070.0,115040.0,0.08750055]
[1760130117920,0.34,115070.0,115060.0,0.08750055]
[1760130118128,0.00050482,115070.0,115060.0,0.08750055]
[1760130118562,0.79902482,115070.0,115060.0,0.08750055]
[1760130118777,0.79894482,115070.0,115060.0,0.08750055]
[1760130118990,0.34050482,115070.0,115060.0,0.08750055]
[1760130119201,0.34350482,115070.0,115060.0,0.08750055]
[1760130119417,0.80078482,115070.0,115060.0,0.08750055]
[1760130119629,0.79978482,115070.0,115060.0,0.08750055]
[1760130119862,1.06927206,115070.0,115060.0,0.08750055]
[1760130120055,0.80278482,115070.0,115060.0,0.08750055]
[1760130120282,0.80210482,115070.0,115060.0,0.08750055]
[1760130120491,0.34550482,115070.0,115060.0,0.08750055]
[1760130120700,0.80170482,115070.0,115060.0,0.08750055]
[1760130120927,0.34,115060.0,115020.0,0.06974413]
[1760130121178,0.34,115060.0,115050.0,0.08750055]
[1760130121387,0.61150235,115060.0,115050.0,0.08750055]
[1760130121609,0.34,115040.0,115010.0,0.00900424]
[1760130121819,0.34,115040.0,115030.0,0.08750055]
[1760130122035,1.06645257,115040.0,115030.0,0.08750055]
[1760130122248,0.51391314,115000.0,114970.0,0.06974413]
[1760130122484,0.51391314,115000.0,114960.0,0.04457]
[1760130122485,0.34,114980.0,114960.0,0.04457]
[1760130122701,0.34,114980.0,114960.0,0.00925269]
[1760130122702,0.79404,114970.0,114960.0,0.00925269]
[1760130122947,0.79404,114970.0,114960.0,0.08750055]
[1760130122948,0.88019218,114970.0,114960.0,0.08750055]
[1760130123169,1.0541506,114970.0,114960.0,0.08750055]
[1760130123393,0.34,114930.0,114910.0,0.06974413]
[1760130123620,0.79356,114920.0,114910.0,0.06982778]
[1760130123841,0.1436,114950.0,114910.0,0.06982778]
[1760130124055,0.30765632,114970.0,114910.0,0.16640778]
[1760130124056,0.22267998,114970.0,114910.0,0.16640778]
[1760130124287,0.09768,114970.0,114910.0,0.16640778]
[1760130124713,0.45252,114960.0,114910.0,0.16640778]
[1760130124942,0.45252,114950.0,114920.0,0.09658]
[1760130125209,0.72519063,114950.0,114910.0,8.365e-05]
[1760130125461,0.28038408,114940.0,114910.0,8.365e-05]
[1760130125684,0.45172,114930.0,114890.0,0.13248892]
[1760130125910,0.34,114920.0,114900.0,0.09658]
[1760130126135,0.34,114920.0,114890.0,0.0360341]
[1760130126136,0.4512,114930.0,114890.0,0.04505836]
[1760130126350,0.34,114950.0,114900.0,0.09658]
[1760130126559,0.08750055,114940.0,114910.0,0.09658]
[1760130126767,0.08750055,114940.0,114930.0,0.04375]
[1760130126981,0.08750055,114940.0,114930.0,0.13733]
[1760130127196,0.45004,114960.0,114930.0,0.13733]
[1760130127426,0.45004,114960.0,114890.0,0.00902426]
[1760130127427,0.18270412,114940.0,114890.0,0.00902426]
[1760130127657,0.34,114920.0,114890.0,0.00902426]
[1760130127868,0.34,114920.0,114890.0,0.00012518]
[1760130128534,0.34,114900.0,114890.0,0.00012518]
[1760130128766,0.34,114930.0,114890.0,0.00012518]
[1760130128982,0.44856,114940.0,114910.0,0.08750055]
[1760130129220,0.005,114920.0,114910.0,0.08750055]
[1760130129691,0.001,114920.0,114890.0,0.52319446]
[1760130129909,0.08850055,114920.0,114910.0,0.09658]
[1760130130592,0.08750055,114920.0,114910.0,0.09658]
[1760130131032,0.004,114930.0,114910.0,0.09658]
[1760130131329,0.24359999,115010.0,114920.0,0.27023636]
[1760130131513,0.08750055,114970.0,114940.0,0.51388365]
[1760130131742,0.04593055,114970.0,114950.0,0.04157]
[1760130131962,0.04593055,114970.0,114940.0,0.00870019]
[1760130132177,0.04593055,114970.0,114950.0,0.17398827]
[1760130132395,0.04593055,114970.0,114960.0,0.6848572]
[1760130132639,0.06974413,115040.0,114960.0,0.6848572]
[1760130132868,0.05086427,115020.0,114980.0,0.51388365]
[1760130133097,0.05086427,115020.0,114960.0,0.60150938]
[1760130133337,0.05086427,115020.0,114960.0,0.74118019]
[1760130133556,0.001,115010.0,114960.0,0.04462573]
[1760130133794,0.08750055,115000.0,114970.0,0.69653924]
[1760130134033,0.18252124,115090.0,115000.0,0.17391304]
[1760130134034,0.08750055,115010.0,115000.0,0.17391304]
[1760130134236,0.50649774,115090.0,115000.0,0.69649234]
[1760130134237,0.01598202,115080.0,115000.0,0.69649234]
[1760130134447,0.08750055,115050.0,115020.0,0.51188365]
[1760130134665,0.08750055,115050.0,115020.0,0.51088365]
[1760130134884,0.08750055,115050.0,115000.0,0.51388365]
[1760130135157,0.08750055,115050.0,115000.0,0.6013842]
[1760130135368,0.0880055,115050.0,115010.0,0.08750055]
[1760130135835,0.0880055,115050.0,115020.0,0.51438337]
[1760130136073,0.0910055,115050.0,115040.0,0.51388365]
[1760130136794,0.00350495,115050.0,115040.0,0.51388365]
[1760130137053,0.00350495,115050.0,115040.0,0.6013842]
[1760130137786,0.00350495,115050.0,115040.0,0.68773622]
[1760130138006,0.00050495,115050.0,115040.0,0.08850055]
[1760130138236,0.00050495,115050.0,115040.0,0.51388365]
[1760130138471,0.00250495,115050.0,115040.0,1.21291677]
[1760130138944,0.00050495,115050.0,115040.0,1.21291677]
[1760130139144,0.00250495,115050.0,115040.0,1.21291677]
[1760130139587,0.00050495,115050.0,115040.0,1.0389042]
[1760130139825,0.00050495,115050.0,115040.0,0.26135312]
[1760130140036,0.00150495,115050.0,115040.0,0.6033842]
[1760130140280,0.00150495,115050.0,115040.0,1.0391842]
[1760130140508,0.00150495,115050.0,115040.0,0.52270055]
[1760130140733,0.00150495,115050.0,115040.0,0.6033842]
[1760130140961,0.00150495,115050.0,115040.0,0.6013842]
[1760130141194,0.00050495,115050.0,115040.0,0.04450055]
[1760130141418,0.00050495,115050.0,115040.0,0.04650055]
[1760130141653,0.00250495,115050.0,115040.0,0.04650055]
[1760130142108,0.00050495,115050.0,115040.0,0.04650055]
[1760130142337,0.00150495,115050.0,115040.0,0.73423677]
[1760130142571,0.00150495,115050.0,115040.0,0.73223677]
[1760130142821,0.00050495,115050.0,115040.0,0.04550055]
[1760130143281,0.00150495,115050.0,115040.0,0.04550055]
[1760130143757,0.00150495,115050.0,115040.0,0.73223677]
[1760130143995,0.00150495,115050.0,115040.0,0.73423677]
[1760130144229,0.00150495,115050.0,115040.0,0.5583842]
[1760130144465,0.00050495,115050.0,115040.0,0.47982055]
[1760130144933,0.00150495,115050.0,115040.0,0.47982055]
[1760130145167,0.07843071,115120.0,115040.0,0.47982055]
[1760130145418,0.33966321,115120.0,115050.0,0.08750055]
[1760130145627,0.26991908,115120.0,115050.0,0.6003842]
[1760130146078,0.18243619,115110.0,115050.0,0.08650055]
[1760130146319,0.18245337,115100.0,115050.0,0.08650055]
[1760130146554,0.18245009,115100.0,115050.0,0.08650055]
[1760130146816,0.003,115120.0,115060.0,0.16035835]
[1760130147047,0.003,115120.0,115110.0,0.51388365]
[1760130147282,0.004,115120.0,115110.0,0.08750055]
[1760130147520,0.001,115120.0,115110.0,0.09361363]
[1760130147741,0.0088108,115140.0,115110.0,0.08750055]
[1760130147982,0.003,115120.0,115080.0,0.09999999]
[1760130148197,0.003,115120.0,115080.0,0.00012528]
[1760130148421,0.0088108,115140.0,115080.0,0.43428528]
[1760130148647,0.003,115120.0,115090.0,0.08750055]
[1760130148893,0.69930275,115120.0,115090.0,0.04450055]
[1760130149117,0.17374697,115110.0,115090.0,0.04450055]
[1760130149342,0.68764559,115100.0,115080.0,0.00012528]
[1760130149573,0.56096704,115090.0,115080.0,0.08762583]
[1760130149795,0.17380906,115070.0,115030.0,0.06974413]
[1760130150020,0.17380906,115070.0,115040.0,0.08750055]
[1760130150021,0.04719,115070.0,115040.0,0.08750055]
[1760130150259,0.85388365,115080.0,115040.0,0.08750055]
[1760130150497,0.68769531,115070.0,115030.0,0.07024908]
[1760130150740,0.51388365,115050.0,115030.0,0.00050495]
[1760130151206,0.77833253,115050.0,115030.0,0.08750055]
[1760130151453,0.00869565,115000.0,114960.0,0.06974413]
[1760130151690,0.61665132,115000.0,114990.0,0.08750055]
[1760130151915,0.82149495,115000.0,114990.0,5.5e-07]
[1760130152155,0.51388365,115000.0,114990.0,5.5e-07]
[1760130152383,0.09061,115000.0,114990.0,5.5e-07]
[1760130152623,0.59949365,115000.0,114990.0,5.5e-07]
[1760130152851,0.2075771,115020.0,114990.0,5.5e-07]
[1760130152852,0.17388318,115020.0,114990.0,5.5e-07]
[1760130153116,0.51388365,115010.0,114990.0,5.5e-07]
[1760130153344,0.51388365,115010.0,114960.0,0.0407027]
[1760130153587,1.0374957,115000.0,114970.0,0.05044007]
[1760130153806,0.51394329,114980.0,114960.0,4.852e-05]
[1760130154031,0.434,114970.0,114960.0,4.852e-05]
[1760130154257,0.60795842,114970.0,114960.0,4.852e-05]
[1760130154487,0.43396,114970.0,114960.0,4.852e-05]
[1760130154714,0.52146055,114970.0,114960.0,4.852e-05]
[1760130154940,0.78602897,114970.0,114960.0,4.852e-05]
[1760130155166,0.60456842,114970.0,114960.0,4.852e-05]
[1760130155417,1.55245207,114970.0,114960.0,4.852e-05]
[1760130155664,0.17401896,114930.0,114920.0,0.0002]
[1760130155894,0.60813015,114930.0,114920.0,0.04956404]
[1760130156121,0.60478015,114930.0,114920.0,0.04956404]
[1760130156354,1.05546592,114930.0,114920.0,0.04956404]
[1760130156595,1.05546592,114930.0,114870.0,0.06994413]
[1760130156596,0.34,114910.0,114870.0,0.06994413]
[1760130156811,0.34,114910.0,114890.0,0.06974413]
[1760130156812,0.43061,114910.0,114890.0,0.06974413]
[1760130157050,0.12515117,114930.0,114890.0,0.06974413]
[1760130157285,0.00015119,114930.0,114910.0,0.06974413]
[1760130157510,0.00015119,114930.0,114920.0,0.11307341]
[1760130157731,0.00015119,114930.0,114910.0,0.09567]
[1760130157732,0.00115119,114930.0,114910.0,0.09567]
[1760130157963,0.00115119,114930.0,114870.0,0.09587]
[1760130158223,0.43511119,114930.0,114890.0,0.09567]
[1760130158445,0.00870246,114910.0,114870.0,0.09587]
[1760130158668,0.62083171,114930.0,114870.0,0.09587]
[1760130158889,0.00315119,114930.0,114900.0,0.04653]
[1760130159138,0.00015119,114930.0,114910.0,0.09567]
[1760130159357,0.00115119,114930.0,114900.0,0.04653]
[1760130159588,0.18287171,114930.0,114900.0,0.04653]
[1760130159818,0.18387171,114930.0,114880.0,0.09567]
[1760130160040,0.00870246,114910.0,114870.0,0.0002]
[1760130160255,0.43392,114920.0,114880.0,0.09567]
[1760130160484,0.00215119,114930.0,114890.0,0.1422]
[1760130160736,0.00215119,114930.0,114900.0,0.09567]
[1760130160941,0.06974413,114950.0,114910.0,0.01600795]
[1760130161160,0.02499999,114980.0,114910.0,0.01600795]
[1760130161161,0.18264412,114980.0,114940.0,0.02423]
[1760130161381,0.15724468,114970.0,114950.0,0.10216172]
[1760130161600,0.15724468,114970.0,114960.0,0.09567]
[1760130161820,0.08750055,114970.0,114960.0,0.09567]
[1760130162310,0.07750055,114970.0,114960.0,0.09267]
[1760130162537,0.07765158,114970.0,114960.0,0.09267]
[1760130162764,0.07865158,114970.0,114940.0,0.02223]
[1760130163015,0.0873495,114970.0,114940.0,0.02223]
[1760130163249,0.07765158,114970.0,114940.0,0.03867228]
[1760130163715,0.08750055,114960.0,114940.0,0.03867228]
[1760130163940,0.26147467,114960.0,114940.0,0.03867228]
[1760130164159,0.18270978,114940.0,114890.0,0.0992]
[1760130164373,0.08750055,114930.0,114890.0,0.0992]
[1760130164594,0.08750055,114930.0,114900.0,0.094]
[1760130164820,0.08750055,114930.0,114910.0,0.11039776]
[1760130165038,0.08100055,114920.0,114910.0,0.60478484]
[1760130165701,0.08100055,114920.0,114910.0,0.77900848]
[1760130166144,0.08100055,114920.0,114910.0,0.60595923]
[1760130166352,0.002,114940.0,114910.0,0.78771094]
[1760130166567,0.002,114940.0,114920.0,0.60478484]
[1760130166788,0.06974413,114970.0,114920.0,0.7875183]
[1760130167010,0.06974413,114990.0,114960.0,0.60478484]
[1760130167317,0.08674166,114970.0,114960.0,0.53542729]
[1760130167549,0.08674166,114970.0,114960.0,0.01508]
[1760130167783,0.01508,114960.0,114950.0,0.17398758]
[1760130168008,0.08674166,114970.0,114960.0,0.60478484]
[1760130168228,0.08889269,114970.0,114960.0,0.77875839]
[1760130168450,0.08889269,114970.0,114960.0,0.60478484]